bitfinex-derivatives/quotes_BNBF0:USTF0_20250101
["timestamp","ask_amount","ask_price","bid_price","bid_amount"]
[1735753175275,1.48002183,706.04,704.9,1.06257049]
[1735753176177,0.26095511,706.03,704.9,1.06257049]
[1735753176777,0.26095511,706.03,704.87,1.06257049]
[1735753178079,0.26095511,706.03,704.88,1.06257049]
[1735753179378,0.28327809,706.02,704.88,1.06257049]
[1735753179581,1.06303986,705.97,704.89,1.06257049]
[1735753179779,0.26095511,705.96,704.89,1.06257049]
[1735753180178,1.48031038,705.95,704.89,1.06257049]
[1735753180479,0.26095511,705.94,704.89,1.06257049]
[1735753180681,0.26095511,705.94,704.79,1.06257049]
[1735753181878,0.26097897,705.93,704.79,1.06257049]
[1735753182079,0.26097897,705.92,704.79,1.06257049]
[1735753182281,0.26097897,705.91,704.79,1.06257049]
[1735753182479,0.26097897,705.9,704.79,1.06257049]
[1735753182676,1.48031038,705.95,704.79,1.06257049]
[1735753184285,1.48031038,705.95,704.81,1.06257049]
[1735753186483,1.48031038,705.95,704.8,1.06257049]
[1735753190788,1.48031038,705.95,704.77,1.06257049]
[1735753192291,1.48031038,705.95,704.79,1.06257049]
[1735753192491,0.26095727,705.94,704.79,1.06257049]
[1735753193187,0.26095699,705.93,704.87,1.06257049]
[1735753193388,0.26095699,705.92,704.87,1.06257049]
[1735753193693,0.26095699,705.91,704.87,1.06257049]
[1735753193993,1.48031038,705.95,704.87,1.06257049]
[1735753194193,0.26095774,705.94,704.87,1.06257049]
[1735753194493,0.26095774,705.94,704.88,1.06257049]
[1735753195292,0.26095382,705.93,704.88,1.06257049]
[1735753195492,0.26095382,705.92,704.88,1.06257049]
[1735753195793,0.26095382,705.91,704.88,1.06257049]
[1735753195987,0.26095382,705.9,704.88,1.06257049]
[1735753196189,1.48031038,705.95,704.88,1.06257049]
[1735753196387,0.26095772,705.94,704.88,1.06257049]
[1735753198888,0.26095772,705.94,704.89,1.06257049]
[1735753199695,0.26095772,705.94,704.9,1.06257049]
[1735753200492,0.2609728,705.93,704.9,1.06257049]
[1735753200695,0.2609728,705.92,704.9,1.06257049]
[1735753200896,0.2609728,705.91,704.89,1.06257049]
[1735753201093,0.2609728,705.9,704.89,1.06257049]
[1735753201297,0.2609728,705.89,704.89,1.06257049]
[1735753201594,1.48031038,705.95,704.89,1.06257049]
[1735753201795,0.26095806,705.94,704.89,1.06257049]
[1735753201988,0.26095806,705.94,704.97,1.06257049]
[1735753202390,1.48031038,705.95,704.97,1.06257049]
[1735753202594,0.26095734,705.94,704.97,1.06257049]
[1735753203200,0.26095734,705.94,705.0,1.06257049]
[1735753203804,2.54335024,705.95,705.0,1.06257049]
[1735753204204,1.32400529,705.94,705.0,1.06257049]
[1735753204403,1.06303986,705.94,705.0,1.06257049]
[1735753205206,1.48031038,705.95,704.96,1.06257049]
[1735753206405,1.48031038,705.95,705.01,1.06257049]
[1735753207306,1.48031038,705.95,705.03,1.06257049]
[1735753208809,0.28327809,706.02,705.03,1.06257049]
[1735753209310,0.28327809,706.02,705.02,1.06257049]
[1735753210310,0.28327809,706.02,705.07,1.06257049]
[1735753211609,0.28327809,706.02,704.46,0.72368297]
[1735753211610,0.28327809,706.02,705.02,1.06257049]
[1735753212705,0.28327809,706.02,704.98,1.06257049]
[1735753214108,0.28327809,706.02,704.94,1.06257049]
[1735753215012,0.28327809,706.02,704.96,1.06257049]
[1735753217210,0.28327809,706.02,704.88,1.06257049]
[1735753218513,0.28327809,706.02,704.89,1.06257049]
[1735753218710,0.26094196,706.01,704.89,1.06257049]
[1735753219315,0.28327809,706.02,704.89,1.06257049]
[1735753219711,0.28327809,706.02,704.95,1.06257049]
[1735753219910,0.26094714,706.01,704.95,1.06257049]
[1735753220111,0.26094882,706.01,704.95,1.06257049]
[1735753221918,0.26094882,706.01,704.94,1.06257049]
[1735753223013,1.32398868,706.01,705.05,1.06257049]
[1735753223310,0.26094882,706.0,705.05,1.06257049]
[1735753224116,0.26094882,706.0,705.06,1.06257049]
[1735753224514,0.26093491,705.99,705.06,1.06257049]
[1735753224714,0.26093491,705.98,705.06,1.06257049]
[1735753224915,0.26093491,705.97,705.06,1.06257049]
[1735753225112,0.26093491,705.96,705.06,1.06257049]
[1735753225313,0.26093491,705.95,705.07,1.06257049]
[1735753227420,1.48007429,705.96,705.07,1.06257049]
[1735753227720,1.48007429,705.96,705.08,1.06257049]
[1735753227917,0.26095817,705.95,705.08,1.06257049]
[1735753229018,0.26095817,705.95,704.92,1.06257049]
[1735753229718,1.48007429,705.96,704.92,1.06257049]
[1735753229919,0.26096582,705.95,704.92,1.06257049]
[1735753231620,0.26096582,705.95,704.29,2.16941475]
[1735753231621,0.26096582,705.95,704.9,1.06257049]
[1735753232414,0.26097011,705.94,704.9,1.06257049]
[1735753232619,0.26097011,705.94,704.27,2.16941475]
[1735753232620,1.48007429,705.96,704.92,1.06257049]
[1735753232816,0.26095607,705.95,704.92,1.06257049]
[1735753233521,1.48007429,705.96,704.92,1.06257049]
[1735753233718,1.48007429,705.96,704.93,1.06257049]
[1735753234721,1.48007429,705.96,704.95,1.06257049]
[1735753235522,0.26095425,705.95,704.95,1.06257049]
[1735753235920,1.48007429,705.96,704.95,1.06257049]
[1735753237125,1.48007429,705.96,704.96,1.06257049]
[1735753237323,0.26095091,705.95,704.96,1.06257049]
[1735753238121,0.26095091,705.95,705.01,1.06257049]
[1735753239526,0.26095091,705.95,705.03,1.06257049]
[1735753240526,1.48007429,705.96,705.03,1.06257049]
[1735753240527,0.26095082,705.94,705.03,1.06257049]
[1735753240722,1.48007429,705.96,705.03,1.06257049]
[1735753240723,0.26095082,705.93,705.03,1.06257049]
[1735753240926,0.26095082,705.92,705.03,1.06257049]
[1735753241121,0.26095082,705.91,705.03,1.06257049]
[1735753241327,0.26094953,705.9,705.03,1.06257049]
[1735753241526,0.26094953,705.89,705.03,1.06257049]
[1735753241728,0.26094953,705.88,705.03,1.06257049]
[1735753242028,0.26094953,705.87,705.03,1.06257049]
[1735753242229,0.26094953,705.86,705.03,1.06257049]
[1735753242627,0.26094953,705.86,705.02,1.06257049]
[1735753243223,0.26096381,705.85,705.02,1.06257049]
[1735753243421,1.48022118,705.87,705.02,1.06257049]
[1735753243625,0.26095651,705.86,705.02,1.06257049]
[1735753243826,1.48022118,705.87,705.02,1.06257049]
[1735753244029,0.26095483,705.86,705.0,1.06257049]
[1735753245130,0.26095483,705.86,704.94,1.06257049]
[1735753245725,1.48022118,705.87,704.94,1.06257049]
[1735753245931,0.26097492,705.86,704.94,1.06257049]
[1735753247525,0.26097492,705.86,704.95,1.06257049]
[1735753248224,0.26097492,705.86,704.96,1.06257049]
[1735753248424,0.26097128,705.85,704.96,1.06257049]
[1735753248629,0.26097128,705.84,704.96,1.06257049]
[1735753248829,1.48022118,705.87,704.96,1.06257049]
[1735753249126,1.48022118,705.87,704.77,1.06257049]
[1735753249127,1.48022118,705.87,704.97,1.06257049]
[1735753249327,0.26097399,705.86,704.97,1.06257049]
[1735753250228,0.26097399,705.86,705.01,1.06257049]
[1735753251738,0.26097399,705.86,704.99,1.06257049]
[1735753252534,0.26097399,705.86,705.0,1.06257049]
[1735753253936,0.26098051,705.85,705.0,1.06257049]
[1735753254131,0.26098051,705.84,705.0,1.06257049]
[1735753254337,0.26098051,705.83,705.0,1.06257049]
[1735753254536,0.26098051,705.82,705.0,1.06257049]
[1735753254738,0.26098051,705.81,705.0,1.06257049]
[1735753254939,0.26098051,705.8,704.98,1.06257049]
[1735753255235,0.26098051,705.79,704.98,1.06257049]
[1735753255538,1.48041534,705.79,704.98,1.06257049]
[1735753255737,0.26099851,705.78,704.98,1.06257049]
[1735753255938,0.26099851,705.78,704.96,1.06257049]
[1735753256638,0.26100272,705.77,704.96,1.06257049]
[1735753256839,1.48041534,705.79,704.96,1.06257049]
[1735753257035,0.26100228,705.78,704.96,1.06257049]
[1735753257240,0.26100228,705.78,704.9,1.06257049]
[1735753258442,0.26100228,705.78,704.87,1.06257049]
[1735753259137,1.48041534,705.79,704.87,1.06257049]
[1735753259343,0.26100271,705.78,704.88,1.06257049]
[1735753260441,0.26100271,705.78,704.89,1.06257049]
[1735753260645,1.48041534,705.79,704.89,1.06257049]
[1735753260944,0.26099884,705.78,704.89,1.06257049]
[1735753261137,0.26100058,705.77,704.89,1.06257049]
[1735753261341,1.48041534,705.79,704.89,1.06257049]
[1735753261544,0.26099717,705.78,704.89,1.06257049]
[1735753263343,0.26099717,705.78,704.88,1.06257049]
[1735753263544,0.26100138,705.77,704.88,1.06257049]
[1735753263743,1.48041534,705.79,704.88,1.06257049]
[1735753263945,0.2610026,705.78,704.88,1.06257049]
[1735753264450,0.26100382,705.77,704.87,1.06257049]
[1735753264644,0.26100382,705.76,704.87,1.06257049]
[1735753264948,1.48041534,705.79,704.87,1.06257049]
[1735753265140,0.26100607,705.78,704.87,1.06257049]
[1735753265449,0.26100607,705.78,704.85,1.06257049]
[1735753266248,1.48041534,705.79,704.85,1.06257049]
[1735753266442,0.26101054,705.78,704.87,1.06257049]
[1735753269343,0.26101054,705.78,704.82,1.06257049]
[1735753270546,0.26101054,705.78,704.84,1.06257049]
[1735753272351,0.26101503,705.77,704.84,1.06257049]
[1735753272552,0.26101503,705.76,704.84,1.06257049]
[1735753272847,0.26101503,705.76,704.45,0.28390943]
[1735753272848,0.26101503,705.75,704.82,1.06257049]
[1735753273051,1.48041534,705.79,704.82,1.06257049]
[1735753273246,0.2610077,705.78,704.82,1.06257049]
[1735753274053,0.2610077,705.78,704.83,1.06257049]
[1735753274353,0.26101278,705.77,704.83,1.06257049]
[1735753274553,0.26101278,705.76,704.83,1.06257049]
[1735753274754,0.26101278,705.75,704.83,1.06257049]
[1735753274956,0.26101278,705.74,704.84,1.06257049]
[1735753275151,0.26101278,705.73,704.84,1.06257049]
[1735753275352,0.26101278,705.72,704.84,1.06257049]
[1735753275552,1.48041534,705.79,704.84,1.06257049]
[1735753275750,0.26101317,705.78,704.84,1.06257049]
[1735753275953,0.26101317,705.77,704.84,1.06257049]
[1735753276155,0.26101317,705.77,704.45,0.28390943]
[1735753276156,0.26101317,705.77,704.86,1.06257049]
[1735753276958,0.26101036,705.76,704.86,1.06257049]
[1735753277159,0.26101036,705.76,704.59,1.06257049]
[1735753277160,0.26101036,705.75,704.84,1.06257049]
[1735753277360,1.48059905,705.78,704.84,1.06257049]
[1735753278260,1.48059905,705.78,704.78,1.06257049]
[1735753279361,1.48059905,705.78,704.85,1.06257049]
[1735753281458,1.48059905,705.78,704.83,1.06257049]
[1735753282263,1.48059905,705.78,704.85,1.06257049]
[1735753286165,1.48059905,705.78,704.86,1.06257049]
[1735753287265,0.26100168,705.77,704.86,1.06257049]
[1735753287465,0.26100168,705.77,704.62,1.06257049]
[1735753287466,0.26100168,705.77,704.87,1.06257049]
[1735753287667,1.48059905,705.78,704.87,1.06257049]
[1735753288660,1.48059905,705.78,704.45,0.28390943]
[1735753288661,1.48059905,705.78,704.95,1.06257049]
[1735753289570,1.48059905,705.78,704.94,1.06257049]
[1735753290568,1.48059905,705.78,704.95,1.06257049]
[1735753291869,1.48059905,705.78,704.94,1.06257049]
[1735753293470,1.48059905,705.78,704.46,1.99876755]
[1735753293471,1.48059905,705.78,704.96,1.06257049]
[1735753294770,1.48059905,705.78,704.97,1.06257049]
[1735753295868,1.48059905,705.78,704.96,1.06257049]
[1735753296972,1.48059905,705.78,704.74,1.06257049]
[1735753296973,1.48059905,705.78,704.95,1.06257049]
[1735753297967,1.48059905,705.78,704.92,1.06257049]
[1735753299069,1.48059905,705.78,704.95,1.06257049]
[1735753300172,1.48059905,705.78,704.96,1.06257049]
[1735753301376,1.48059905,705.78,704.98,1.06257049]
[1735753302672,1.48059905,705.78,705.0,1.06257049]
[1735753303777,1.48059905,705.78,704.99,1.06257049]
[1735753304877,1.48059905,705.78,705.0,1.06257049]
[1735753305377,1.06303986,705.82,705.0,1.06257049]
[1735753305972,1.06303986,705.86,705.04,1.06257049]
[1735753306171,0.26096541,705.85,705.04,1.06257049]
[1735753306475,1.06303986,705.86,705.04,1.06257049]
[1735753306670,0.26096541,705.85,705.04,1.06257049]
[1735753306874,1.06303986,705.86,705.04,1.06257049]
[1735753307074,1.06303986,705.87,705.04,1.06257049]
[1735753307773,1.48013199,705.99,704.51,0.72368297]
[1735753309281,1.48013199,705.99,705.04,1.0613985]
[1735753310076,1.48013199,705.99,705.01,1.0613985]
[1735753311182,1.48013199,705.99,705.0,1.0613985]
[1735753311879,1.48013199,705.99,704.98,1.0613985]
[1735753313283,1.48013199,705.99,704.97,1.0613985]
[1735753313975,1.48013199,705.99,704.95,1.0613985]
[1735753314878,1.48013199,705.99,704.93,1.0613985]
[1735753316385,1.48013199,705.99,704.92,1.0613985]
[1735753317586,1.48013199,705.99,704.93,1.0613985]
[1735753318687,0.26091981,705.98,704.93,1.0613985]
[1735753318882,0.26091981,705.98,704.94,1.0613985]
[1735753319885,0.26091981,705.98,704.52,0.8519831]
[1735753319886,0.26091981,705.98,705.02,1.0613985]
[1735753320988,1.48013199,705.99,705.02,1.0613985]
[1735753322490,1.48013199,705.99,704.86,1.0613985]
[1735753323384,1.48013199,705.99,704.85,1.0613985]
[1735753324688,1.48013199,705.99,704.84,1.0613985]
[1735753326789,1.48013199,705.99,704.51,0.72368297]
[1735753326790,1.48013199,705.99,704.85,1.0613985]
[1735753327191,0.26095676,705.98,704.85,1.0613985]
[1735753327491,1.48013199,705.99,704.85,1.0613985]
[1735753327684,0.26095729,705.98,704.85,1.0613985]
[1735753328285,0.28329815,705.97,704.85,1.0613985]
[1735753328491,0.26095729,705.96,704.85,1.0613985]
[1735753329495,0.26095729,705.96,704.87,1.0613985]
[1735753330588,0.26095729,705.96,704.88,1.0613985]
[1735753330992,0.28329815,705.97,704.88,1.0613985]
[1735753331695,0.28329815,705.97,704.5,0.28388928]
[1735753331696,0.28329815,705.97,704.76,1.0613985]
[1735753333090,0.28329815,705.97,704.5,0.28388928]
[1735753333091,0.28329815,705.97,704.74,1.0613985]
[1735753333996,0.28329815,705.97,704.75,1.0613985]
[1735753334797,0.28329815,705.97,704.76,1.0613985]
[1735753336894,0.28329815,705.97,704.74,1.0613985]
[1735753340601,0.28329815,705.97,704.75,1.0613985]
[1735753341100,0.26098835,705.96,704.75,1.0613985]
[1735753341300,0.54429052,705.96,704.75,1.0613985]
[1735753341601,0.28330217,705.96,704.75,1.0613985]
[1735753341804,0.28330217,705.96,704.5,0.28388928]
[1735753341805,0.28330217,705.96,704.77,1.0613985]
[1735753342902,0.28330217,705.96,704.69,1.0613985]
[1735753344303,0.28330217,705.96,704.67,1.0613985]
[1735753345403,0.28330217,705.96,704.7,1.0613985]
[1735753347298,0.28330217,705.96,704.73,1.0613985]
[1735753349698,0.28330217,705.96,704.74,1.0613985]
[1735753351705,0.26098871,705.95,704.74,1.0613985]
[1735753352207,0.26098863,705.94,704.74,1.0613985]
[1735753352406,0.26098863,705.93,704.75,1.0613985]
[1735753352601,0.26098863,705.92,704.75,1.0613985]
[1735753352806,0.26098863,705.91,704.75,1.0613985]
[1735753353007,0.26098863,705.9,704.75,1.0613985]
[1735753353201,0.26098863,705.89,704.75,1.0613985]
[1735753353706,0.26098835,705.88,704.84,1.0613985]
[1735753354003,0.26099365,705.87,704.84,1.0613985]
[1735753354303,0.26099365,705.86,704.84,1.0613985]
[1735753354504,0.26099365,705.85,704.84,1.0613985]
[1735753354710,2.54348425,705.9,704.86,1.0613985]
[1735753354907,0.26099965,705.89,704.86,1.0613985]
[1735753356501,0.26099965,705.89,704.85,1.0613985]
[1735753357401,0.26099092,705.88,704.85,1.0613985]
[1735753357608,0.26099092,705.87,704.85,1.0613985]
[1735753357800,1.06306366,705.89,704.85,1.0613985]
[1735753358003,0.26099243,705.88,704.85,1.0613985]
[1735753358602,0.26099243,705.88,704.87,1.0613985]
[1735753358807,0.26099243,705.87,704.87,1.0613985]
[1735753359009,0.26099243,705.86,704.87,1.0613985]
[1735753359307,0.26099243,705.85,704.87,1.0613985]
[1735753359607,1.48042059,705.9,704.87,1.0613985]
[1735753359907,1.32406216,705.89,704.88,1.0613985]
[1735753360107,0.2609985,705.88,704.88,1.0613985]
[1735753360607,1.06306366,705.87,704.86,1.0613985]
[1735753360803,0.2609985,705.86,704.86,1.0613985]
[1735753361808,0.2609985,705.86,704.89,1.0613985]
[1735753362007,1.06306366,705.88,704.89,1.0613985]
[1735753362805,2.54348425,705.9,704.92,1.0613985]
[1735753363011,0.26098536,705.89,704.92,1.0613985]
[1735753364113,1.06306366,705.83,704.99,1.0613985]
[1735753364413,0.26098536,705.82,704.99,1.0613985]
[1735753365414,1.48033137,705.83,704.99,1.0613985]
[1735753365714,0.26097815,705.82,704.99,1.0613985]
[1735753366116,0.26097815,705.82,705.03,1.0613985]
[1735753368118,1.48033137,705.83,705.03,1.0613985]
[1735753368317,0.26097769,705.82,705.03,1.0613985]
[1735753369021,0.26097612,705.81,705.02,1.0613985]
[1735753369222,0.26097612,705.8,705.02,1.0613985]
[1735753369417,2.54339503,705.83,705.02,1.0613985]
[1735753369620,0.26097425,705.82,705.02,1.0613985]
[1735753370525,0.26097425,705.82,705.03,1.0613985]
[1735753370925,0.26098115,705.81,705.03,1.0613985]
[1735753371127,0.26098115,705.8,705.03,1.0613985]
[1735753371322,2.54339503,705.83,705.03,1.0613985]
[1735753371528,0.2609778,705.82,705.03,1.0613985]
[1735753371723,0.2609778,705.82,704.85,1.0613985]
[1735753371724,1.06306366,705.81,705.02,1.0613985]
[1735753372025,0.2609778,705.8,705.02,1.0613985]
[1735753373133,0.2609778,705.8,705.03,1.0613985]
[1735753373325,1.06306366,705.82,705.03,1.0613985]
[1735753373728,0.26097637,705.81,705.03,1.0613985]
[1735753374132,1.32404003,705.81,705.04,1.0613985]
[1735753374428,1.06306366,705.81,705.04,1.0613985]
[1735753374827,0.26097312,705.8,705.05,1.0613985]
[1735753375131,2.54339503,705.83,705.05,1.0613985]
[1735753375330,0.26097779,705.82,705.05,1.0613985]
[1735753375936,1.06306366,705.8,705.03,1.0613985]
[1735753376130,0.26097779,705.79,705.03,1.0613985]
[1735753376635,0.26098638,705.78,705.03,1.0613985]
[1735753376836,1.06306366,705.81,705.03,1.0613985]
[1735753377032,0.26098198,705.8,705.03,1.0613985]
[1735753378236,1.32404564,705.8,705.03,1.0613985]
[1735753378437,0.26098198,705.79,705.03,1.0613985]
[1735753380539,1.06306366,705.78,705.01,1.0613985]
[1735753382040,1.06306366,705.82,705.05,1.0613985]
[1735753382340,0.26097632,705.81,705.05,1.0613985]
[1735753383040,1.32403998,705.81,705.04,1.0613985]
[1735753383240,0.26097632,705.8,705.04,1.0613985]
[1735753383440,1.06306366,705.81,705.04,1.0613985]
[1735753383641,0.26097656,705.8,705.04,1.0613985]
[1735753384139,1.06306366,705.82,705.04,1.0613985]
[1735753384342,0.26097668,705.81,705.04,1.0613985]
[1735753386341,0.26097691,705.8,705.04,1.0613985]
[1735753386541,1.06306366,705.82,705.04,1.0613985]
[1735753387739,1.48033137,705.83,704.91,1.0613985]
[1735753389045,1.48033137,705.83,704.89,1.0613985]
[1735753390146,1.48033137,705.83,704.88,1.0613985]
[1735753394143,1.48033137,705.83,704.82,1.0613985]
[1735753395348,1.48033137,705.83,704.78,1.0613985]
[1735753396442,0.26102738,705.82,704.78,1.0613985]
[1735753396945,0.26102531,705.81,704.74,1.0613985]
[1735753397148,0.26102531,705.8,704.74,1.0613985]
[1735753397342,0.26102531,705.79,704.74,1.0613985]
[1735753397650,1.06306366,705.77,704.83,1.0613985]
[1735753397947,0.26102531,705.76,704.83,1.0613985]
[1735753398551,1.48065679,705.75,704.83,1.0613985]
[1735753398752,0.26102531,705.74,704.82,1.0613985]
[1735753399547,1.48065679,705.75,704.82,1.0613985]
[1735753399752,0.26103548,705.74,704.82,1.0613985]
[1735753399955,1.06306366,705.72,704.82,1.0613985]
[1735753400154,0.26103548,705.71,704.82,1.0613985]
[1735753400354,1.06306366,705.72,704.82,1.0613985]
[1735753400355,0.26103745,705.7,704.82,1.0613985]
[1735753400546,0.26103745,705.69,704.82,1.0613985]
[1735753400754,0.26103745,705.68,704.82,1.0613985]
[1735753400954,1.06306366,705.72,704.51,0.72472096]
[1735753400955,0.26103745,705.67,704.79,1.0613985]
[1735753401155,0.26103745,705.66,704.79,1.0613985]
[1735753401452,1.06306366,705.74,704.79,1.0613985]
[1735753401651,0.26103634,705.73,704.79,1.0613985]
[1735753402150,0.26103634,705.72,704.79,1.0613985]
[1735753402351,2.54372045,705.75,704.79,1.0613985]
[1735753402554,0.26103647,705.74,704.79,1.0613985]
[1735753403156,0.26103647,705.74,704.51,0.72472096]
[1735753403157,0.26103647,705.74,704.77,1.0613985]
[1735753404161,0.26103647,705.74,704.76,1.0613985]
[1735753405055,0.26103682,705.73,704.76,1.0613985]
[1735753405254,0.26103682,705.72,704.76,1.0613985]
[1735753405458,0.26103682,705.71,704.76,1.0613985]
[1735753405660,0.26103682,705.7,704.76,1.0613985]
[1735753405854,0.26103682,705.69,704.76,1.0613985]
[1735753406156,0.26103682,705.68,704.76,1.0613985]
[1735753406459,0.26103682,705.67,704.75,1.0613985]
[1735753406660,0.26103682,705.66,704.75,1.0613985]
[1735753406960,0.26103682,705.65,704.75,1.0613985]
[1735753407155,0.26103682,705.64,704.75,1.0613985]
[1735753407353,0.26103682,705.63,704.75,1.0613985]
[1735753407557,1.48065679,705.75,704.75,1.0613985]
[1735753407759,0.26103554,705.74,704.75,1.0613985]
[1735753408461,0.26104669,705.73,704.75,1.0613985]
[1735753408656,0.26104669,705.72,704.72,1.0613985]
[1735753408859,0.26104669,705.71,704.72,1.0613985]
[1735753409057,0.26104669,705.7,704.72,1.0613985]
[1735753409262,0.26104669,705.69,704.72,1.0613985]
[1735753409463,0.26104669,705.68,704.72,1.0613985]
[1735753409658,0.26104669,705.67,704.71,1.0613985]
[1735753409858,0.26104669,705.66,704.71,1.0613985]
[1735753410164,0.26104669,705.65,704.71,1.0613985]
[1735753410359,1.4807303,705.66,704.71,1.0613985]
[1735753410561,0.26104397,705.65,704.71,1.0613985]
[1735753412867,0.26104397,705.65,704.73,1.0613985]
[1735753413464,1.4807303,705.66,704.73,1.0613985]
[1735753413670,0.26102847,705.65,704.73,1.0613985]
[1735753415070,0.26102847,705.65,704.7,1.0613985]
[1735753415569,1.4807303,705.66,704.7,1.0613985]
[1735753415763,0.2610463,705.65,704.7,1.0613985]
[1735753416265,0.2610463,705.65,704.69,1.0613985]
[1735753416471,0.26103728,705.64,704.69,1.0613985]
[1735753416670,0.26103728,705.63,704.69,1.0613985]
[1735753416971,0.26103728,705.62,704.72,1.0613985]
[1735753417171,1.4807303,705.66,704.72,1.0613985]
[1735753417372,0.26103997,705.65,704.72,1.0613985]
[1735753418772,1.4807303,705.66,704.72,1.0613985]
[1735753419375,1.4807303,705.66,704.5,0.28388928]
[1735753419376,1.4807303,705.66,704.66,1.0613985]
[1735753420479,1.4807303,705.66,704.68,1.0613985]
[1735753421075,1.4807303,705.66,704.67,1.0613985]
[1735753421878,1.4807303,705.66,704.69,1.0613985]
[1735753423380,1.4807303,705.66,704.71,1.0613985]
[1735753424474,1.4807303,705.66,704.6,1.0613985]
[1735753425680,1.4807303,705.66,704.61,1.0613985]
[1735753426880,1.4807303,705.66,704.7,1.0613985]
[1735753428379,1.4807303,705.66,704.74,1.0613985]
[1735753429479,1.4807303,705.66,704.5,0.28388928]
[1735753429480,1.4807303,705.66,704.76,1.0613985]
[1735753430680,1.4807303,705.66,704.71,1.0613985]
[1735753431679,1.4807303,705.66,704.5,0.28388928]
[1735753431680,1.4807303,705.66,704.67,1.0613985]
[1735753432781,1.4807303,705.66,704.69,1.0613985]
[1735753434280,1.4807303,705.66,704.7,1.0613985]
[1735753435381,1.4807303,705.66,704.75,1.0613985]
[1735753436884,1.4807303,705.66,704.76,1.0613985]
[1735753438188,1.4807303,705.66,704.75,1.0613985]
[1735753440886,0.26105859,705.65,704.75,1.0613985]
[1735753441084,0.26105859,705.65,704.5,1.34528778]
[1735753441085,0.26105859,705.65,704.72,1.0613985]
[1735753441690,1.4807303,705.66,704.72,1.0613985]
[1735753441989,0.26104924,705.65,704.72,1.0613985]
[1735753442493,1.06306366,705.62,704.84,1.0613985]
[1735753442686,0.26104924,705.61,704.84,1.0613985]
[1735753443091,1.06306366,705.62,704.84,1.0613985]
[1735753444095,1.4807303,705.66,704.51,0.72568533]
[1735753444096,1.06306366,705.64,704.86,1.0613985]
[1735753444293,0.26104147,705.63,704.86,1.0613985]
[1735753445295,0.26104147,705.63,704.87,1.0613985]
[1735753446296,0.26104147,705.63,704.86,1.0613985]
[1735753446994,1.06306366,705.64,704.86,1.0613985]
[1735753448696,1.4807303,705.66,704.87,1.0613985]
[1735753448697,2.54379396,705.66,704.87,1.0613985]
[1735753448994,0.26103846,705.65,704.87,1.0613985]
[1735753449790,0.26103765,705.64,704.87,1.0613985]
[1735753449989,2.54379396,705.66,704.87,1.0613985]
[1735753450697,1.4807303,705.66,704.66,1.0613985]
[1735753451994,1.06306366,705.86,704.66,1.0613985]
[1735753452196,1.48066729,705.79,704.66,1.0613985]
[1735753452398,1.48066729,705.79,704.69,1.0613985]
[1735753453692,1.48066729,705.79,704.5,0.28388928]
[1735753453693,1.48066729,705.79,704.72,1.0613985]
[1735753454699,1.48066729,705.79,704.71,1.0613985]
[1735753455798,1.48066729,705.79,704.68,1.0613985]
[1735753458099,1.48066729,705.79,704.74,1.0613985]
[1735753458999,1.48066729,705.79,704.76,1.0613985]
[1735753462705,1.48066729,705.79,704.77,1.0613985]
[1735753463608,0.26101191,705.78,704.82,1.0613985]
[1735753463906,0.26102002,705.77,704.82,1.0613985]
[1735753464102,0.26102002,705.76,704.82,1.0613985]
[1735753464303,1.48066729,705.79,704.82,1.0613985]
[1735753464506,0.26101835,705.78,704.82,1.0613985]
[1735753464708,0.26101835,705.78,704.83,1.0613985]
[1735753465906,0.26101951,705.77,704.83,1.0613985]
[1735753466103,0.26101951,705.76,704.83,1.0613985]
[1735753466307,0.26101951,705.75,704.83,1.0613985]
[1735753466512,0.26101951,705.74,704.83,1.0613985]
[1735753466811,0.26101951,705.73,704.83,1.0613985]
[1735753467107,0.26101951,705.72,704.83,1.0613985]
[1735753467407,0.26101951,705.71,704.83,1.0613985]
[1735753467612,0.26101951,705.7,704.83,1.0613985]
[1735753467811,0.26101951,705.69,704.83,1.0613985]
[1735753468111,0.26101951,705.68,704.88,1.0613985]
[1735753468305,1.06306366,705.73,704.88,1.0613985]
[1735753468611,0.26102125,705.72,704.88,1.0613985]
[1735753470507,1.48062005,705.71,704.88,1.0613985]
[1735753470709,0.26102125,705.7,704.87,1.0613985]
[1735753471213,1.48062005,705.71,704.87,1.0613985]
[1735753471416,0.26102263,705.7,704.87,1.0613985]
[1735753471812,1.48062005,705.71,704.86,1.0613985]
[1735753472913,1.48062005,705.71,704.81,1.0613985]
[1735753474313,1.48062005,705.71,704.58,1.0613985]
[1735753474314,1.48062005,705.71,704.8,1.0613985]
[1735753476914,1.48062005,705.71,704.81,1.0613985]
[1735753477814,1.48062005,705.71,704.82,1.0613985]
[1735753478814,1.48062005,705.71,704.5,1.34528778]
[1735753478815,1.48062005,705.71,704.79,1.0613985]
[1735753480017,1.48062005,705.71,704.81,1.0613985]
[1735753483312,1.48062005,705.71,704.51,0.72544713]
[1735753483313,1.48062005,705.71,704.86,1.0613985]
[1735753487320,0.26102595,705.7,704.86,1.0613985]
[1735753487516,1.48062005,705.71,704.86,1.0613985]
[1735753487715,0.26102595,705.7,704.86,1.0613985]
[1735753488020,1.48062005,705.71,704.86,1.0613985]
[1735753488523,1.3240871,705.7,704.89,1.0613985]
[1735753488716,0.26102344,705.69,704.89,1.0613985]
[1735753489115,1.06306366,705.7,704.89,1.0613985]